Cogmind - Beta 14 @@@ ROGUE MODE // 2024.09.18 @ 01:04:59 Player: Duduxx Result: Destroyed by as-25540 with Assembled Heavy Rifle Performance ------------- Evolutions (1) 500 Regions Visited (4) 800 Robots Destroyed (28) 140 Value Destroyed (798) 798 Prototype IDs (4) 80 Alien Tech Used (0) 0 Bonus (0) 0 TOTAL SCORE: 2318 Bonus ------- None Cogmind --------- Core Integrity 0/400 Matter 270/300 Energy 96/100 System Corruption 8% Temperature Cool (0) Movement Walking (120) Location -9/Mines Parts ------- > --- POWER (1) -------- (None) > --- PROPULSION (3) --- Aluminum Leg Aluminum Leg Aluminum Leg > --- UTILITY (3) ------ Heat Sink Small Storage Unit Hardened Light Armor Plating > --- WEAPON (2) ------- Small Laser Katana > --- INVENTORY (8) ---- Improved Ion Engine Weight Redist. System Hardlight Generator Shotgun Peak State ------------ > --- POWER ------------ Ion Engine > --- PROPULSION ------- Aluminum Leg Aluminum Leg Aluminum Leg > --- UTILITY ---------- Heat Sink Small Storage Unit Hardened Light Armor Plating > --- WEAPON ----------- Enhanced Flamer Katana > --- INVENTORY -------- Improved Ion Engine Weight Redist. System Hardlight Generator Small Laser Shotgun [Rating: 15] Favorites ----------- Power Light Nuclear Core Engine Improved Ion Engine Power Core Light Nuclear Core Propulsion Light Treads Treads Light Treads Leg Aluminum Leg Utility Small Storage Unit Device Heat Sink Storage Small Storage Unit Protection Hardened Light Armor Plating Weapon Light Assault Rifle Energy Gun Small Laser Ballistic Gun Light Assault Rifle Special Weapon Enhanced Flamer Slashing Weapon Katana Build | -11 -10 -10 -9 -9 ------- Run | Yrd Mat Min Mat Min Slots Evolved 2 | . . . 2 . Power . | . . . . . Propulsion 1 | . . . 1 . Utility 1 | . . . 1 . Weapon . | . . . . . Parts Attached 45 | 6 4 . 33 2 Power 8 | 1 1 . 6 . Engine 6 | 1 . . 5 . Core 2 | . 1 . 1 . Reactor . | . . . . . Propulsion 13 | 2 1 . 10 . Treads 5 | 2 1 . 2 . Leg 8 | . . . 8 . Wheel . | . . . . . Hover . | . . . . . Flight . | . . . . . Utility 10 | 1 1 . 8 . Device 5 | . 1 . 4 . Storage 1 | 1 . . . . Processor . | . . . . . Hackware . | . . . . . Protection 4 | . . . 4 . Artifact . | . . . . . Weapon 14 | 2 1 . 9 2 Energy Gun 7 | . . . 6 1 Energy Cannon . | . . . . . Ballistic Gun 3 | 2 1 . . . Ballistic Cannon . | . . . . . Launcher . | . . . . . Special Weapon 1 | . . . . 1 Impact Weapon . | . . . . . Slashing Weapon 3 | . . . 3 . Piercing Weapon . | . . . . . Special Melee Weapon . | . . . . . Unidentified Prototypes 2 | . . . 2 . Corrupted Parts 1 | . . . 1 . System Corruption 8 | . . . 8 . Parts Lost 17 | . . 1 15 1 Power 4 | . . . 3 1 Propulsion 6 | . . 1 5 . Utility 2 | . . . 2 . Weapon 5 | . . . 5 . Highest Loss Streak 5 | . . 1 5 1 To Critical Strikes . | . . . . . Average Slot Usage (%) 88 | . 97 86 82 98 Engine 4 | . 2 . 7 10 Core 7 | . 11 14 . . Treads 13 | . 28 15 3 . Leg 10 | . . . 22 33 Device 12 | . 11 14 13 11 Storage 12 | . 14 14 11 11 Protection 2 | . . . 3 11 Energy Gun 5 | . . . 12 9 Ballistic Gun 16 | . 28 28 3 . Slashing Weapon 2 | . . . 5 11 Peak Build Rating 15 | 6 9 9 13 15 Average Rating 9 | 4 8 8 9 12 On Entrance 7 | . 6 9 8 12 Naked Turns . | . . . . . Heaviest Build 21 | 13 14 13 21 20 Greatest Support 40 | 40 40 40 30 30 Greatest Overweight (x) 4 | 2 . . 4 . Average Overweight (x) . | . . . . . Largest Inventory Capacity 8 | 8 8 8 8 8 Average Capacity 7 | 7 8 8 8 8 Most Carried 5 | 1 3 2 4 5 Average Carried 1 | . 1 2 1 4 Final Capacity 8 | 8 8 8 8 8 Final Carried 4 | 1 2 2 4 4 Class Distribution -------------------- 63% | Mutant 36% | Scavenger-Mutant Dominant Class ---------------- Mutant | -10/Materials Mutant | -10/Mines Scavenger-Mutant | -9/Materials Scavenger-Mutant | -9/Mines Resources | -11 -10 -10 -9 -9 ----------- Run | Yrd Mat Min Mat Min Matter Collected 700 | 110 92 199 256 43 Remotely . | . . . . . Salvage Created 1019 | . 135 101 714 69 Parts 61 | . 6 7 47 1 Haulers Intercepted . | . . . . . Recyclers Shooed 1 | . 1 . . . Parts Field Recycled . | . . . . . Retrieved Matter . | . . . . . Parts Self-Destructed . | . . . . . Prevented . | . . . . . Kills | -11 -10 -10 -9 -9 ------- Run | Yrd Mat Min Mat Min Combat Hostiles Destroyed 29 | . 3 4 19 3 Melee 5 | . . . 4 1 Guns 24 | . 3 4 15 2 Classes Destroyed 8 | . 1 2 3 2 Worker 1 | . . . . 1 Tunneler 1 | . . 1 . . Swarmer 7 | . . 3 4 . Grunt 14 | . 3 1 10 . Brawler 1 | . . . 1 . Duelist 1 | . . . 1 . Sentry 3 | . . . 3 . Assembled 3 | . . . . 3 Best Kill Streak 7 | . 2 2 7 3 Combat Bots Only 7 | . 2 2 7 2 Max Kills in Single Turn 2 | . 1 2 2 1 Gunslinging 1 | . . 1 1 . Exploded . | . . . . . Melee 1 | . . . 1 1 Uniques/NPCs Destroyed . | . . . . . Combat | -11 -10 -10 -9 -9 -------- Run | Yrd Mat Min Mat Min Hostile Shots Fired 247 | . 29 35 151 32 Missed 65 | . 8 12 40 5 Damage Taken 2557 | . 497 270 1408 382 Core 502 | . 39 62 313 88 Absorbed by Shields . | . . . . . Core Remaining (%) 79 | 100 . 59 . . Volleys Fired 129 | . 17 24 54 34 Largest 2 | . 2 2 2 1 Hottest 96 | . 40 40 96 80 Shots Fired 199 | . 34 48 83 34 Gun 198 | . 34 48 83 33 Cannon . | . . . . . Launcher . | . . . . . Special 1 | . . . . 1 Kinetic 108 | . 34 48 26 . Thermal 91 | . . . 57 34 Explosive . | . . . . . Electromagnetic . | . . . . . Robot Hit Streak 8 | . 5 5 8 5 Robot Miss Streak 5 | . 1 4 2 5 Penetration Max . | . . . . . Secondary Targets 3 | . . 1 2 . Max Gunslinging Chain 1 | . . 1 1 . Shots Hit Robots 139 | . 24 27 69 19 Core Hits 53 | . 7 9 28 9 Critical Kills . | . . . . . Critical Parts Destroyed 1 | . . 1 . . Critical Strikes 5 | . . 1 4 . Burn 2 | . . . 2 . Destroy 1 | . . 1 . . Sever 2 | . . . 2 . Melee Attacks 17 | . . . 15 2 Impact . | . . . . . Slashing 17 | . . . 15 2 Piercing . | . . . . . Sneak Attacks . | . . . . . Combat Hostiles . | . . . . . Follow-up Attacks . | . . . . . Damage Inflicted 1723 | 7 266 215 1011 224 Guns 1347 | . 259 215 687 186 Cannons . | . . . . . Explosions . | . . . . . Melee 362 | . . . 324 38 Ramming 14 | 7 7 . . . Kinetic 621 | . 259 215 147 . Thermal 726 | . . . 540 186 Explosive . | . . . . . Electromagnetic . | . . . . . Impact . | . . . . . Slashing 362 | . . . 324 38 Piercing . | . . . . . Highest Corruption 8 | . 1 1 8 8 Average Corruption 2 | . 1 1 8 8 Corruption Purged . | . . . . . Corruption Blocked . | . . . . . Effects 12 | . 3 2 4 3 Message Errors 3 | . 1 1 1 . Matter Fused 1 | . . . . 1 Heat Flow Errors 1 | . . . 1 . Energy Discharges 1 | . 1 . . . Parts Rejected 2 | . . . 1 1 Parts Fused 1 | . . 1 . . Data Loss (minor) 1 | . . . . 1 Data Loss (major) 1 | . 1 . . . Alerts 1 | . . . 1 . Overload Shots . | . . . . . Overflow Damage 1 | . . . 1 . Projectiles . | . . . . . Explosions . | . . . . . Melee 1 | . . . 1 . Knockbacks . | . . . . . Impact . | . . . . . Kinetic . | . . . . . Secondary . | . . . . . Self-Inflicted Damage . | . . . . . Shots . | . . . . . Rammed 2 | 1 1 . . . Targets Rammed 3 | 1 1 1 . . Kicked . | . . . . . Crushed 1 | . . 1 . . Highest Temperature 372 | . 42 1 372 24 Average Temperature 61 | . 21 1 82 13 Received Heat Transfer 815 | . 174 117 474 50 Effects 2 | . . . 2 . Energy Bleed 1 | . . . 1 . Damage (minor) 1 | . . . 1 . Siege Activations . | . . . . . Robots Corrupted . | . . . . . Combat Hostiles . | . . . . . Parts Fried . | . . . . . Impact Corruptions . | . . . . . Robots Melted . | . . . . . Combat Hostiles . | . . . . . Parts Melted . | . . . . . Heat Transferred 1888 | . . . 1463 425 Parts Sabotaged . | . . . . . Parts Stolen . | . . . . . Parts Stripped . | . . . . . Power Chain Reactions . | . . . . . Alert | -11 -10 -10 -9 -9 ------- Run | Yrd Mat Min Mat Min Peak Influence 247 | . 70 115 247 86 Initial 81 | . . 5 . 81 Average 88 | . 43 76 137 82 Maximum Alert Level 1 | . . . 1 . Low Security (%) 89 | 100 100 100 70 100 Level 1 10 | . . . 29 . Level 2 . | . . . . . Level 3 . | . . . . . Level 4 . | . . . . . Level 5 . | . . . . . High Security . | . . . . . Max Security . | . . . . . Squads Dispatched 6 | . 1 . 5 . Investigation 4 | . 1 . 3 . Extermination . | . . . . . Reinforcement 2 | . . . 2 . Assault . | . . . . . Garrison . | . . . . . Intercept . | . . . . . Searches Triggered . | . . . . . Construction Impeded . | . . . . . Haulers Reinforced . | . . . . . Active Scanning Responses . | . . . . . Cargo Convoy Interrupts . | . . . . . Stealth | -11 -10 -10 -9 -9 --------- Run | Yrd Mat Min Mat Min Distress Signals 1 | . 1 . . . Communications Jammed . | . . . . . Distress Signals . | . . . . . Times Spotted 46 | . 8 4 23 11 Peak Tracking Total 7 | . 2 3 7 5 Tactical Retreats . | . . . . . Traps | -11 -10 -10 -9 -9 ------- Run | Yrd Mat Min Mat Min Traps Triggered 5 | . 1 . 4 . Indirectly . | . . . . . Trap Hack Attempts . | . . . . . Triggered . | . . . . . Disarmed . | . . . . . Reprogrammed . | . . . . . Reused . | . . . . . Traps Extracted . | . . . . . Installed . | . . . . . Triggered . | . . . . . Machines | -11 -10 -10 -9 -9 ---------- Run | Yrd Mat Min Mat Min Machines Disabled . | . . . . . Max in Single Turn . | . . . . . Machines Repaired . | . . . . . Machines Dismantled . | . . . . . Machines Sabotaged . | . . . . . Overloaded Fab Kills . | . . . . . Hacking | -11 -10 -10 -9 -9 --------- Run | Yrd Mat Min Mat Min Machines Accessed 4 | . 2 . 2 . Terminals 4 | . 2 . 2 . Fabricators . | . . . . . Repair Stations . | . . . . . Recycling Units . | . . . . . Scanalyzers . | . . . . . Garrison Access . | . . . . . Total Hacks 11 | . 6 . 5 . Successful 3 | . 3 . . . Failed 8 | . 3 . 5 . Catastrophic 3 | . 1 . 2 . Database Lockouts . | . . . . . Manual 7 | . 2 . 5 . Terminals 11 | . 6 . 5 . Fabricators . | . . . . . Repair Stations . | . . . . . Recycling Units . | . . . . . Scanalyzers . | . . . . . Garrison Access . | . . . . . Terminal Hacks 3 | . 3 . . . Prototype ID Bank 1 | . 1 . . . Hauler Manifests 1 | . 1 . . . Registered Prototypes 1 | . 1 . . . Fabricator Hacks . | . . . . . Repair Station Hacks . | . . . . . Recycling Unit Hacks . | . . . . . Scanalyzer . | . . . . . Garrison Access Hacks . | . . . . . Unauthorized Hacks . | . . . . . Terminals . | . . . . . Fabricators . | . . . . . Repair Stations . | . . . . . Recycling Units . | . . . . . Scanalyzers . | . . . . . Garrison Access . | . . . . . Data Cores Recovered . | . . . . . Used . | . . . . . Hacking Detections 4 | . 2 . 2 . Full Trace Events 3 | . 1 . 2 . Feedback Events . | . . . . . Feedback Blocked . | . . . . . Robot Schematics Acquired . | . . . . . Robots Built . | . . . . . Authchips . | . . . . . Time . | . . . . . Total Robot Build Rating . | . . . . . Part Schematics Acquired . | . . . . . Parts Built . | . . . . . Authchips . | . . . . . Time . | . . . . . Total Part Build Rating . | . . . . . Parts Repaired . | . . . . . Time . | . . . . . Parts Recycled . | . . . . . Recycled Matter . | . . . . . Retrieved Matter . | . . . . . Retrieved Components . | . . . . . Parts Scanalyzed . | . . . . . Part Schematics Acquired . | . . . . . Parts Damaged . | . . . . . Bothacking | -11 -10 -10 -9 -9 ------------ Run | Yrd Mat Min Mat Min Used RIF Installer . | . . . . . Robots Hacked . | . . . . . Non-combat . | . . . . . Combat . | . . . . . Robot Hacks Applied . | . . . . . Relay Couplers Released . | . . . . . Fabnet Peak Effective % . | . . . . . Robots Rewired . | . . . . . Allies Hacked . | . . . . . Hacks Repelled . | . . . . . Allies | -11 -10 -10 -9 -9 -------- Run | Yrd Mat Min Mat Min Total Allies . | . . . . . Largest Group . | . . . . . Highest-Rated Group . | . . . . . Highest-Rated Ally . | . . . . . Total Orders . | . . . . . Ally Attacks . | . . . . . Total Damage . | . . . . . Kills . | . . . . . Allies Corrupted . | . . . . . Allies Melted . | . . . . . Intel | -11 -10 -10 -9 -9 ------- Run | Yrd Mat Min Mat Min Robot Analysis Total . | . . . . . Derelict Logs Recovered 1 | . . 1 . . Drone Launches . | . . . . . Drone Recoveries . | . . . . . Exploration | -11 -10 -10 -9 -9 ------------- Run | Yrd Mat Min Mat Min Turns Passed 1741 | 49 469 461 646 116 Spaces Moved 876 | 26 257 249 311 33 Core 19 | 6 . . 13 . Treads 577 | 20 257 249 51 . Legs 280 | . . . 247 33 Wheels . | . . . . . Hover . | . . . . . Flight . | . . . . . Fastest Speed 50 | 50 160 160 120 120 Average Speed 147 | 148 160 160 129 120 Slowest Speed 250 | 160 160 160 250 120 Overloaded Moves . | . . . . . Propulsion Burnouts . | . . . . . Robots Hopped . | . . . . . Cave-ins Triggered . | . . . . . Exploration Rate (%) 26 | 3 40 51 29 8 Regions Visited 4 Branch Regions 2 Pre-discovered Areas 1 | . . 1 . . Known Exits Taken . | . . . . . Unknown Exits Taken 4 | 1 1 1 1 . Scrap Searched . | . . . . . Spaces Dug 3 | . . . 3 . Terrain Destroyed 3 | . . . 3 . Melee 3 | . . . 3 . Projectile . | . . . . . AOE . | . . . . . Terrain Rammed . | . . . . . Walls Destroyed . | . . . . . Machines Disabled . | . . . . . Actions | -11 -10 -10 -9 -9 --------- Run | Yrd Mat Min Mat Min Total 1108 | 33 284 273 446 72 Wait 13 | . . . 13 . Move 872 | 25 256 248 310 33 Hop . | . . . . . Pick Up 7 | 1 1 . 5 . Fast Attach 35 | 6 3 . 25 1 Attach 5 | . . . 4 1 Detach 11 | . 2 . 8 1 Swap 5 | . 1 . 4 . Drop 11 | . 3 . 8 . Fire 129 | . 17 24 54 34 Melee 17 | . . . 15 2 Ram . | . . . . . Kick . | . . . . . Crush 3 | 1 1 1 . . Escape Stasis . | . . . . . Rewire . | . . . . . Trap . | . . . . . Miscellaneous . | . . . . . Route ------- -11/Scrapyard -10/Materials (discovered 2 exits: *Mat / [*Min]) -10/Mines -9/Materials -9/Mines History --------- Turn | Location | Event 14 | -11/Scrapyard | Discovered new exit (range 16) 50 | -11/Scrapyard | Entered Materials 316 | -10/Materials | Build established: Mutant 451 | -10/Materials | Discovered new exit (range 16) 457 | -10/Materials | Discovered new exit (range 13) 519 | -10/Materials | Entered Mines 529 | -10/Mines | Met a Derelict bent on vengeance 740 | -10/Mines | Learned Materials terminal intel 866 | -10/Mines | Learned location of Storage (-8) 972 | -10/Mines | Discovered new exit (range 7) 980 | -10/Mines | Entered Materials 980 | -9/Materials | Evolved 2 slots: Propulsion x1, Utility x1 981 | -9/Materials | Loaded intel: 12 terminal locations 1088 | -9/Materials | Lost 4 parts (2p1n1w) 1283 | -9/Materials | Lost 4 parts (1p1n1u1w) 1368 | -9/Materials | Build established: Scavenger-Mutant 1378 | -9/Materials | Core integrity fell below 50% 1536 | -9/Materials | Lost 5 parts (3n1u1w) 1547 | -9/Materials | Destroyed 7 combat bots 1554 | -9/Materials | Discovered new exit (range 12) 1626 | -9/Materials | Entered Mines 1642 | -9/Mines | A weapon hastily lodged in a ceiling crevice suddenly fell to the ground 1643 | -9/Mines | Assembled infested the area 1670 | -9/Mines | Core integrity fell below 20% 1742 | -9/Mines | Destroyed by as-25540 with Assembled Heavy Rifle Last Messages --------------- 01657_ K-01 Serf collects debris. 01667_ System corrupted: Enh. Flamer rejected. 01670_ as-29827 destroyed. 01675_ K-01 Serf destroyed. 01681_ as-12921 destroyed. 01682_ as-70777 suffers critical hit (Smash). 01682_ as-70777 system corrupted by crushing effect. 01684_ B-36 Bruiser destroyed. 01685_ as-70777 destroyed. 01689_ K-01 Serf destroyed. 01690_ as-06438 destroyed. 01695_ as-84533 destroyed. 01709_ G-34 Mercenary destroyed. 01712_ System corrupted: Component data lost. 01715_ as-01200 destroyed. 01717_ Acquired 10 matter. 01718_ Acquired 33 matter. 01736_ System corrupted: Matter fused (-8). 01736_ Ion Engine destroyed. Map ----- +----------------------------------------------------+ | | | | | | | | | | | | | | | | | | | | | | | | | | | | | | | | | ??????????????????????????????????????????????? | | ????????????????????##????????????????????????? | | ???????????????????? ????????????????????????? | | ?????????????????????" ???????????????????????? | | ?????????????????????" ???????????????????????? | | ?????????????????????? "??????????????????????? | | ??????????????????????? ????#####?????????????? | | ???????????????????????#/???# #?????????????? | | ?????????????????#######%####r# #?????????????? | | ?????????? aaaa*!@ | # #####?????????? | | ????????????????# ############# #?????????? | | ?????????????????????????????# #?????????? | | ?????????????????????????????# ##?????????? | | ?????????????????????????????## #######????? | | ??????????????????????????????## #????? | | ???????????????????????????????## ### #????? | | ????????????????????????????????# #?# #????? | | ????????????????????????????????# #?# #????? | | ????????????????????????????????## ##?# #????? | | ?????????????????????????????????####### ####?? | | ?????????????????????????????????????# #?? | | ?????????????????????????????????????# #?? | | ?????????????????????????????????????# #?? | | ?????????????????????????????????????# #?? | | ?????????????????????????????????????# #?? | | ?????????????????????????????????????# #?? | | ?????????????????????????????????????########?? | | ??????????????????????????????????????????????? | | ??????????????????????????????????????????????? | | ??????????????????????????????????????????????? | | ??????????????????????????????????????????????? | | ??????????????????????????????????????????????? | | ??????????????????????????????????????????????? | | ??????????????????????????????????????????????? | +----------------------------------------------------+ Best States ------------- Heat Dissipation 48 Energy Generation 14 Energy Capacity 265 Matter Stores 300 Matter Capacity 300 Sight Range 16 Terrain Scan Density 10 Armor Coverage 150 Evasion (%) 55 Recoil Reduction 2 Item Schematics ----------------- None Robot Schematics ------------------ None Fabricated ------------ Nothing Alien Tech Used ----------------- None Achievements -------------- None Challenges ------------ None Game ------ Seed SeismicDrainedTrap Manual? 0 Play Time 00:13:48 Cumulative 45.9 hours Start 2024.09.18 @ 00:51:43 End 2024.09.18 @ 01:04:59 Sessions 1 Manual Loads 0 Difficulty Rogue Special Mode None Game No. 103 Rogue 103 Adventurer 0 Explorer 0 Win Type - Total 0 Types 0/0/0/0/0/0/0/0/0 Lore% 16 Gallery% 32 Achievement% 26 Wizard Run 0 Options --------- Layout 1 ASCII 0 Keyboard 1 Movement Arrows Keybinds 0 Fullscreen 1 Font 24/Smallcaps Map View 50x35 Zoom Use 0% Tactical HUD 1 Map Filters NONE Filters NONE Steam 1 RUN: 6347e736-6cd6-4d9f-a91c-cf75f326d898